[Event "LJ Slovak Open 2022"]
[Site "Liptovsky Jan"]
[Date "2022.06.25"]
[Round "4.5"]
[White "Elias, David"]
[Black "Zetocha, Adrian"]
[Result "1-0"]
[ECO "E43"]
[WhiteElo "1901"]
[BlackElo "2331"]
[Annotator "RC"]
[PlyCount "85"]
[EventDate "2022.06.23"]
[EventType "swiss"]
[EventCountry "SVK"]
[SourceTitle "playchess.com"]
[Source "ChessBase"]
[SourceQuality "1"]
[TimeControl "3600+30"]

1. d4 {[%emt 0:00:13]} Nf6 {[%emt 0:00:20]} 2. c4 {[%emt 0:00:33]} e6 {[%emt 0:00:39]} 3. Nf3 {[%emt 0:00:12]} b6 {[%emt 0:00:26]} 4. Nc3 {[%emt 0:01:21]} Bb4 {[%emt 0:01:02]} 5. e3 {[%emt 0:01:06]} Ne4 {[%emt 0:01:29]} 6. Bd2 {[%emt 0:03:38]} Bxc3 {[%emt 0:04:33]} 7. Bxc3 {[%emt 0:08:32]} Bb7 {[%emt 0:05:28]} 8. Be2 {[%emt 0:04:42]} d6 {[%emt 0:01:33]} 9. O-O {[%emt 0:00:40]} Nd7 {[%emt 0:01:51]} 10. Nd2 {[%emt 0:05:41]} Nxc3 {[%emt 0:10:27]} 11. bxc3 {[%emt 0:00:01]} O-O {[%emt 0:00:40]} 12. Bf3 {[%emt 0:02:05]} c6 {[%emt 0:01:53]} 13. a4 {[%emt 0:00:52]} a5 {[%emt 0:01:00]} 14. Qb3 {[%emt 0:03:21]} Qc7 {[%emt 0:04:18]} 15. Rfd1 {[%emt 0:04:34]} Rae8 {[%emt 0:09:54]} 16. Rab1 {[%emt 0:04:05]} Ba6 {[%emt 0:00:32]} 17. e4 {[%emt 0:07:22]} g6 {[%emt 0:02:21]} 18. Re1 {[%emt 0:04:15]} Kh8 {[%emt 0:02:01]} 19. Be2 {[%emt 0:00:40]} c5 {[%emt 0:01:27]} 20. f4 {[%emt 0:01:42]} e5 {[%emt 0:01:07]} 21. fxe5 {[%emt 0:02:10]} dxe5 {[%emt 0:00:07]} 22. d5 {[%emt 0:00:34]} f5 {[%emt 0:00:26]} 23. Rf1 {[%emt 0:02:12]} Rf6 {[%emt 0:03:23]} 24. g4 {[%emt 0:01:34]} f4 {[%emt 0:00:59]} 25. g5 {[%emt 0:00:10]} Rd6 {[%emt 0:00:15]} 26. Bg4 {[%emt 0:00:27]} Re7 {[%emt 0:05:31]} 27. Nf3 {[%emt 0:00:16]} Kg7 {[%emt 0:02:07]} 28. Kf2 {[%emt 0:00:26]} Kf8 {[%emt 0:02:04]} 29. Rh1 {[%emt 0:00:34]} Ke8 {[%emt 0:00:19]} 30. h4 {[%emt 0:00:23]} Kd8 {[%emt 0:01:14]} 31. h5 {[%emt 0:03:07]} Nf8 {[%emt 0:02:26]} 32. hxg6 {[%emt 0:01:51]} Nxg6 {[%emt 0:00:15]} 33. Bf5 {[%emt 0:00:44]} Bc8 {[%emt 0:00:16]} 34. Bxg6 {[%emt 0:02:09]} Rxg6 {[%emt 0:00:05]} 35. Rh6 {[%emt 0:00:23]} Rxh6 {[%emt 0:01:51]} 36. gxh6 {[%emt 0:00:02]} Qd6 {[%emt 0:00:09]} 37. Qxb6+ {[%emt 0:00:38]} Qxb6 {[%emt 0:00:50]} 38. Rxb6 {[%emt 0:00:01]} Bd7 {[%emt 0:01:31]} 39. Ra6 {[%emt 0:00:34]} Bxa4 {[%emt 0:00:30]} 40. Rxa5 {[%emt 0:00:06]} Bc2 {[%emt 0:00:16]} 41. Ra8+ {[%emt 0:00:23]} Kd7 {[%emt 0:00:16]} 42. Ng5 {[%emt 0:00:30]} Bd3 {[%emt 0:00:26]} 43. Nxh7 {[%emt 0:00:10]} 1-0

[Event "LJ Slovak Open 2022"]
[Site "Liptovsky Jan"]
[Date "2022.06.25"]
[Round "4.6"]
[White "Rucek, Kristian"]
[Black "Giertli, Vladimir"]
[Result "1-0"]
[ECO "E92"]
[WhiteElo "2128"]
[BlackElo "1988"]
[Annotator "RC"]
[PlyCount "207"]
[EventDate "2022.06.23"]
[EventType "swiss"]
[EventCountry "SVK"]
[SourceTitle "playchess.com"]
[Source "ChessBase"]
[SourceQuality "1"]
[TimeControl "3600+30"]

1. d4 {[%emt 0:00:05]} Nf6 {[%emt 0:00:19]} 2. c4 {[%emt 0:00:17]} d6 {[%emt 0:00:09]} 3. Nf3 {[%emt 0:00:26]} g6 {[%emt 0:00:10]} 4. Nc3 {[%emt 0:00:05]} Bg7 {[%emt 0:00:06]} 5. e4 {[%emt 0:00:17]} O-O {[%emt 0:00:27]} 6. Be2 {[%emt 0:00:04]} e5 {[%emt 0:00:46]} 7. Be3 {[%emt 0:00:07]} c6 {[%emt 0:01:20]} 8. d5 {[%emt 0:00:15]} Ng4 {[%emt 0:00:46]} 9. Bg5 {[%emt 0:00:13]} f6 {[%emt 0:01:34]} 10. Bc1 {[%emt 0:00:05]} f5 {[%emt 0:00:17]} 11. dxc6 {[%emt 0:04:34]} bxc6 {[%emt 0:00:29]} 12. O-O {[%emt 0:07:55]} a5 {[%emt 0:02:32]} 13. Bg5 {[%emt 0:01:47]} Qc7 {[%emt 0:00:49]} 14. c5 {[%emt 0:01:49]} dxc5 {[%emt 0:00:36]} 15. Qb3+ {[%emt 0:00:39]} Kh8 {[%emt 0:00:02]} 16. h3 {[%emt 0:00:55]} Nf6 {[%emt 0:00:07]} 17. Be3 {[%emt 0:01:52]} Na6 {[%emt 0:00:50]} 18. exf5 {[%emt 0:06:35]} gxf5 {[%emt 0:00:09]} 19. Qc4 {[%emt 0:01:33]} f4 {[%emt 0:02:47]} 20. Bxc5 {[%emt 0:00:35]} Nxc5 {[%emt 0:00:02]} 21. Qxc5 {[%emt 0:00:10]} e4 {[%emt 0:00:50]} 22. Ng5 {[%emt 0:01:30]} f3 {[%emt 0:04:48]} 23. gxf3 {[%emt 0:03:21]} exf3 {[%emt 0:00:29]} 24. Bxf3 {[%emt 0:01:34]} a4 {[%emt 0:00:10]} 25. Qxc6 {[%emt 0:05:52]} Qf4 {[%emt 0:00:20]} 26. Nf7+ {[%emt 0:05:03]} Rxf7 {[%emt 0:03:04]} 27. Qxa8 {[%emt 0:00:05]} Rf8 {[%emt 0:00:21]} 28. Bg2 {[%emt 0:10:16]} Bxh3 {[%emt 0:00:15]} 29. Qf3 {[%emt 0:01:40]} Qxf3 {[%emt 0:02:40]} 30. Bxf3 {[%emt 0:00:02]} Bxf1 {[%emt 0:00:32]} 31. Rxf1 {[%emt 0:00:02]} Nd7 {[%emt 0:01:17]} 32. Bc6 {[%emt 0:01:00]} Nc5 {[%emt 0:00:01]} 33. Nxa4 {[%emt 0:03:00]} Nxa4 {[%emt 0:02:03]} 34. Bxa4 {[%emt 0:00:02]} Bxb2 {[%emt 0:00:27]} 35. Bb5 {[%emt 0:00:11]} Ba3 {[%emt 0:00:55]} 36. f4 {[%emt 0:00:44]} Ra8 {[%emt 0:04:32]} 37. Kg2 {[%emt 0:00:29]} Kg7 {[%emt 0:00:01]} 38. Kf3 {[%emt 0:00:34]} Kf6 {[%emt 0:00:06]} 39. Rh1 {[%emt 0:00:30]} Kg7 {[%emt 0:02:42]} 40. Bd3 {[%emt 0:00:25]} h6 {[%emt 0:01:21]} 41. Rg1+ {[%emt 0:00:10]} Kf7 {[%emt 0:00:30]} 42. Rg6 {[%emt 0:02:00]} Bf8 {[%emt 0:00:11]} 43. Rb6 {[%emt 0:00:50]} Ra3 {[%emt 0:01:05]} 44. Ke4 {[%emt 0:00:41]} Ra4+ {[%emt 0:02:58]} 45. Kf5 {[%emt 0:00:58]} Ra5+ {[%emt 0:00:45]} 46. Bb5 {[%emt 0:00:15]} Ra3 {[%emt 0:06:08]} 47. Rb7+ {[%emt 0:00:16]} Be7 {[%emt 0:00:06]} 48. Bc4+ {[%emt 0:00:17]} Kf8 {[%emt 0:00:22]} 49. Rb8+ {[%emt 0:00:29]} Kg7 {[%emt 0:00:05]} 50. Rg8+ {[%emt 0:00:15]} Kh7 {[%emt 0:00:19]} 51. Rg2 {[%emt 0:00:38]} Bd6 {[%emt 0:02:40]} 52. Rd2 {[%emt 0:02:22]} Ra5+ {[%emt 0:00:37]} 53. Kf6 {[%emt 0:00:58]} Ra4 {[%emt 0:03:39]} 54. Be6 {[%emt 0:01:36]} Ra6 {[%emt 0:02:24]} 55. f5 {[%emt 0:02:58]} h5 {[%emt 0:04:30]} 56. Kg5 {[%emt 0:02:46]} h4 {[%emt 0:00:40]} 57. Kxh4 {[%emt 0:00:48]} Be7+ {[%emt 0:04:10]} 58. Kg4 {[%emt 0:00:37]} Kg7 {[%emt 0:00:05]} 59. Rg2 {[%emt 0:01:53]} Kf6 {[%emt 0:00:08]} 60. Kf4 {[%emt 0:00:21]} Ra4+ {[%emt 0:00:44]} 61. Ke3 {[%emt 0:00:10]} Ke5 {[%emt 0:01:00]} 62. Kd3 {[%emt 0:00:20]} Ra3+ {[%emt 0:01:56]} 63. Kc2 {[%emt 0:01:19]} Bf6 {[%emt 0:06:26]} 64. Re2+ {[%emt 0:00:34]} Kf4 {[%emt 0:00:26]} 65. Rd2 {[%emt 0:01:18]} Rc3+ {[%emt 0:01:21]} 66. Kd1 {[%emt 0:00:08]} Ra3 {[%emt 0:01:43]} 67. Rc2 {[%emt 0:00:39]} Rd3+ {[%emt 0:00:39]} 68. Ke2 {[%emt 0:00:00]} Re3+ {[%emt 0:00:07]} 69. Kd2 {[%emt 0:00:00]} Ra3 {[%emt 0:00:11]} 70. Rc4+ {[%emt 0:00:18]} Ke5 {[%emt 0:00:52]} 71. Rc5+ {[%emt 0:00:59]} Kf4 {[%emt 0:00:02]} 72. Rb5 {[%emt 0:00:13]} Bc3+ {[%emt 0:01:34]} 73. Kd3 {[%emt 0:00:50]} Bf6+ {[%emt 0:00:05]} 74. Rb3 {[%emt 0:00:54]} Ra4 {[%emt 0:00:09]} 75. Rb6 {[%emt 0:01:03]} Be5 {[%emt 0:00:59]} 76. Kc2 {[%emt 0:00:43]} Ra3 {[%emt 0:00:13]} 77. Rb4+ {[%emt 0:00:37]} Kg5 {[%emt 0:00:26]} 78. Kb1 {[%emt 0:00:13]} Kf6 {[%emt 0:01:36]} 79. Rb3 {[%emt 0:00:15]} Ra4 {[%emt 0:00:15]} 80. a3 {[%emt 0:00:36]} Bd6 {[%emt 0:00:48]} 81. Ka2 {[%emt 0:00:10]} Bc5 {[%emt 0:00:50]} 82. Rd3 {[%emt 0:00:17]} Be7 {[%emt 0:00:41]} 83. Bd7 {[%emt 0:00:32]} Ra7 {[%emt 0:00:21]} 84. a4 {[%emt 0:01:06]} Ke5 {[%emt 0:00:39]} 85. Re3+ {[%emt 0:00:39]} Kf6 {[%emt 0:00:34]} 86. Re6+ {[%emt 0:00:34]} Kf7 {[%emt 0:00:30]} 87. Bb5 {[%emt 0:00:08]} Ra8 {[%emt 0:00:20]} 88. Kb3 {[%emt 0:00:43]} Ra7 {[%emt 0:02:23]} 89. Bc4 {[%emt 0:00:27]} Kg7 {[%emt 0:00:26]} 90. Rg6+ {[%emt 0:00:15]} Kh7 {[%emt 0:00:02]} 91. Rb6 {[%emt 0:00:24]} Kg7 {[%emt 0:00:07]} 92. Bd5 {[%emt 0:00:39]} Ra5 {[%emt 0:00:31]} 93. Rb5 {[%emt 0:00:26]} Ra6 {[%emt 0:00:38]} 94. a5 {[%emt 0:00:29]} Rh6 {[%emt 0:00:22]} 95. Rb6 {[%emt 0:00:56]} Rh3+ {[%emt 0:00:47]} 96. Kc4 {[%emt 0:00:19]} Rh4+ {[%emt 0:00:11]} 97. Kb5 {[%emt 0:00:28]} Rb4+ {[%emt 0:00:02]} 98. Kc6 {[%emt 0:00:11]} Ra4 {[%emt 0:00:37]} 99. a6 {[%emt 0:00:08]} Bh4 {[%emt 0:01:21]} 100. Kb7 {[%emt 0:01:07]} Ra5 {[%emt 0:01:34]} 101. a7 {[%emt 0:00:59]} Rxa7+ {[%emt 0:00:33]} 102. Kxa7 {[%emt 0:00:09]} Bf2 {[%emt 0:00:09]} 103. Be6 {[%emt 0:00:20]} Kf6 {[%emt 0:00:10]} 104. Kb7 {[%emt 0:00:07]} 1-0

[Event "LJ Slovak Open 2022"]
[Site "Liptovsky Jan"]
[Date "2022.06.25"]
[Round "4.7"]
[White "Skreko, Igor"]
[Black "Ziaran, Viliam"]
[Result "1-0"]
[ECO "D36"]
[WhiteElo "2065"]
[BlackElo "1832"]
[Annotator "RC"]
[PlyCount "83"]
[EventDate "2022.06.23"]
[EventType "swiss"]
[EventCountry "SVK"]
[SourceTitle "playchess.com"]
[Source "ChessBase"]
[SourceQuality "1"]
[TimeControl "3600+30"]

1. d4 {[%emt 0:00:03]} d5 {[%emt 0:00:07]} 2. c4 {[%emt 0:00:05]} e6 {[%emt 0:00:09]} 3. Nc3 {[%emt 0:00:05]} Nf6 {[%emt 0:00:08]} 4. cxd5 {[%emt 0:00:04]} exd5 {[%emt 0:00:12]} 5. Bg5 {[%emt 0:00:05]} Be7 {[%emt 0:00:15]} 6. e3 {[%emt 0:00:05]} c6 {[%emt 0:00:16]} 7. Bd3 {[%emt 0:00:06]} Nbd7 {[%emt 0:00:07]} 8. Qc2 {[%emt 0:00:07]} h6 {[%emt 0:00:27]} 9. Bh4 {[%emt 0:00:19]} O-O {[%emt 0:00:21]} 10. Nf3 {[%emt 0:00:06]} Re8 {[%emt 0:03:01]} 11. O-O {[%emt 0:00:20]} Ne4 {[%emt 0:03:52]} 12. Bxe7 {[%emt 0:00:49]} Qxe7 {[%emt 0:00:15]} 13. b4 {[%emt 0:00:58]} Ndf6 {[%emt 0:02:45]} 14. b5 {[%emt 0:01:27]} Bd7 {[%emt 0:00:53]} 15. bxc6 {[%emt 0:00:46]} bxc6 {[%emt 0:00:28]} 16. Ne5 {[%emt 0:06:35]} Nxc3 {[%emt 0:09:44]} 17. Qxc3 {[%emt 0:00:15]} c5 {[%emt 0:01:58]} 18. Nxd7 {[%emt 0:02:33]} Nxd7 {[%emt 0:00:22]} 19. dxc5 {[%emt 0:00:46]} Nxc5 {[%emt 0:01:57]} 20. Be2 {[%emt 0:05:24]} Rac8 {[%emt 0:00:53]} 21. Bf3 {[%emt 0:03:01]} Ne4 {[%emt 0:00:50]} 22. Qd4 {[%emt 0:01:09]} Qc5 {[%emt 0:01:48]} 23. Rfd1 {[%emt 0:02:43]} Qc2 {[%emt 0:02:02]} 24. Bxe4 {[%emt 0:02:13]} dxe4 {[%emt 0:00:41]} 25. Qxa7 {[%emt 0:03:46]} Red8 {[%emt 0:03:12]} 26. Rxd8+ {[%emt 0:10:21]} Rxd8 {[%emt 0:00:08]} 27. h3 {[%emt 0:00:31]} Rd2 {[%emt 0:01:02]} 28. Qb8+ {[%emt 0:01:04]} Kh7 {[%emt 0:00:10]} 29. Qf4 {[%emt 0:00:18]} Kg8 {[%emt 0:03:12]} 30. a4 {[%emt 0:03:34]} Qb2 {[%emt 0:02:38]} 31. Rf1 {[%emt 0:00:14]} Qb4 {[%emt 0:01:22]} 32. Rc1 {[%emt 0:01:25]} Qe7 {[%emt 0:04:45]} 33. Rc8+ {[%emt 0:01:12]} Kh7 {[%emt 0:00:33]} 34. Rc7 {[%emt 0:03:33]} Rd7 {[%emt 0:08:27]} 35. Qf5+ {[%emt 0:00:18]} g6 {[%emt 0:00:31]} 36. Qxd7 {[%emt 0:00:24]} Qxd7 {[%emt 0:00:09]} 37. Rxd7 {[%emt 0:00:02]} Kg7 {[%emt 0:00:09]} 38. a5 {[%emt 0:00:08]} Kf6 {[%emt 0:00:11]} 39. a6 {[%emt 0:00:05]} Ke6 {[%emt 0:00:04]} 40. Rd4 {[%emt 0:00:11]} f5 {[%emt 0:00:11]} 41. a7 {[%emt 0:00:05]} Ke5 {[%emt 0:00:06]} 42. a8=Q {[%emt 0:00:15]} 1-0

[Event "LJ Slovak Open 2022"]
[Site "Liptovsky Jan"]
[Date "2022.06.25"]
[Round "4.8"]
[White "Vilimek, Vit"]
[Black "Podjavorinsky, Michal"]
[Result "1/2-1/2"]
[ECO "B20"]
[WhiteElo "1972"]
[BlackElo "1941"]
[Annotator "RC"]
[PlyCount "99"]
[EventDate "2022.06.23"]
[EventType "swiss"]
[EventCountry "SVK"]
[SourceTitle "playchess.com"]
[Source "ChessBase"]
[SourceQuality "1"]
[TimeControl "3600+30"]

1. e4 {[%emt 0:00:50]} c5 {[%emt 0:00:09]} 2. a3 {[%emt 0:00:19]} e6 {[%emt 0:00:40]} 3. b4 {[%emt 0:00:25]} cxb4 {[%emt 0:00:30]} 4. axb4 {[%emt 0:00:03]} Bxb4 {[%emt 0:04:47]} 5. c3 {[%emt 0:00:01]} Be7 {[%emt 0:01:16]} 6. d4 {[%emt 0:00:32]} d6 {[%emt 0:03:53]} 7. f4 {[%emt 0:00:10]} d5 {[%emt 0:03:09]} 8. e5 {[%emt 0:00:03]} g6 {[%emt 0:00:16]} 9. Nf3 {[%emt 0:00:19]} b6 {[%emt 0:03:05]} 10. Bd3 {[%emt 0:00:07]} a5 {[%emt 0:00:26]} 11. Na3 {[%emt 0:01:15]} Ba6 {[%emt 0:02:00]} 12. Nb5 {[%emt 0:01:34]} Bxb5 {[%emt 0:02:31]} 13. Bxb5+ {[%emt 0:00:12]} Nd7 {[%emt 0:01:28]} 14. O-O {[%emt 0:00:21]} h5 {[%emt 0:04:48]} 15. Ng5 {[%emt 0:18:59]} Nh6 {[%emt 0:03:59]} 16. Qf3 {[%emt 0:03:38]} Nf5 {[%emt 0:02:45]} 17. g3 {[%emt 0:01:09]} Rc8 {[%emt 0:03:04]} 18. h3 {[%emt 0:08:11]} h4 {[%emt 0:02:42]} 19. g4 {[%emt 0:01:03]} Ng3 {[%emt 0:00:40]} 20. f5 {[%emt 0:09:50]} gxf5 {[%emt 0:07:12]} 21. gxf5 {[%emt 0:00:22]} Nxf5 {[%emt 0:03:01]} 22. Qg4 {[%emt 0:07:59]} Rxc3 {[%emt 0:02:24]} 23. Nxe6 {[%emt 0:02:31]} Rg3+ {[%emt 0:08:34]} 24. Qxg3 {[%emt 0:00:06]} Nxg3 {[%emt 0:00:06]} 25. Nxd8 {[%emt 0:00:07]} Nxf1 {[%emt 0:00:20]} 26. Nc6 {[%emt 0:01:04]} Ng3 {[%emt 0:00:39]} 27. Nb8 {[%emt 0:07:16]} Ne2+ {[%emt 0:00:33]} 28. Kf1 {[%emt 0:00:01]} Nxd4 {[%emt 0:00:24]} 29. Bxd7+ {[%emt 0:00:23]} Kd8 {[%emt 0:00:28]} 30. Be3 {[%emt 0:02:40]} Bc5 {[%emt 0:01:56]} 31. Bxd4 {[%emt 0:03:50]} Bxd4 {[%emt 0:00:17]} 32. Nc6+ {[%emt 0:00:01]} Kxd7 {[%emt 0:00:26]} 33. Nxd4 {[%emt 0:00:02]} Rc8 {[%emt 0:02:32]} 34. Ke2 {[%emt 0:00:50]} Rc3 {[%emt 0:00:44]} 35. Rb1 {[%emt 0:01:06]} Rxh3 {[%emt 0:01:07]} 36. Rxb6 {[%emt 0:00:02]} a4 {[%emt 0:00:48]} 37. Rd6+ {[%emt 0:00:30]} Ke8 {[%emt 0:00:44]} 38. Nc6 {[%emt 0:00:45]} Kf8 {[%emt 0:00:20]} 39. Rf6 {[%emt 0:00:50]} Ke8 {[%emt 0:00:24]} 40. Rd6 {[%emt 0:00:18]} Kf8 {[%emt 0:00:05]} 41. Rxd5 {[%emt 0:00:03]} a3 {[%emt 0:00:13]} 42. Ra5 {[%emt 0:00:23]} Rc3 {[%emt 0:01:26]} 43. Nd4 {[%emt 0:00:51]} h3 {[%emt 0:00:54]} 44. Kd2 {[%emt 0:00:56]} Kg8 {[%emt 0:03:11]} 45. e6 {[%emt 0:00:30]} h2 {[%emt 0:00:34]} 46. Kxc3 {[%emt 0:00:30]} h1=Q {[%emt 0:00:18]} 47. exf7+ {[%emt 0:00:29]} Kxf7 {[%emt 0:00:08]} 48. Rxa3 {[%emt 0:00:32]} Qc1+ {[%emt 0:00:22]} 49. Nc2 {[%emt 0:00:04]} Qxa3+ {[%emt 0:00:22]} 50. Nxa3 {[%emt 0:00:06]} 1/2-1/2

[Event "LJ Slovak Open 2022"]
[Site "Liptovsky Jan"]
[Date "2022.06.25"]
[Round "4.9"]
[White "Freibergs, Andrejs"]
[Black "Kasperek, Ryszard"]
[Result "1-0"]
[ECO "A48"]
[WhiteElo "1526"]
[BlackElo "2068"]
[Annotator "RC"]
[PlyCount "61"]
[EventDate "2022.06.23"]
[EventType "swiss"]
[EventCountry "SVK"]
[SourceTitle "playchess.com"]
[Source "ChessBase"]
[SourceQuality "1"]
[TimeControl "3600+30"]

1. d4 {[%emt 0:00:04]} c5 {[%emt 0:02:14]} 2. e3 {[%emt 0:00:56]} Nf6 {[%emt 0:00:18]} 3. Nf3 {[%emt 0:00:22]} g6 {[%emt 0:00:40]} 4. Bd3 {[%emt 0:02:01]} Bg7 {[%emt 0:04:02]} 5. O-O {[%emt 0:00:27]} O-O {[%emt 0:01:04]} 6. c4 {[%emt 0:01:37]} cxd4 {[%emt 0:03:29]} 7. exd4 {[%emt 0:00:10]} d5 {[%emt 0:00:05]} 8. b3 {[%emt 0:00:30]} Nc6 {[%emt 0:00:28]} 9. Bb2 {[%emt 0:00:58]} Nh5 {[%emt 0:13:23]} 10. Qd2 {[%emt 0:05:21]} dxc4 {[%emt 0:13:37]} 11. Bxc4 {[%emt 0:00:18]} Bg4 {[%emt 0:00:23]} 12. Ne5 {[%emt 0:03:04]} Nxe5 {[%emt 0:11:15]} 13. dxe5 {[%emt 0:00:12]} Qxd2 {[%emt 0:00:04]} 14. Nxd2 {[%emt 0:00:08]} Rad8 {[%emt 0:00:02]} 15. Ne4 {[%emt 0:01:49]} Nf4 {[%emt 0:00:20]} 16. f3 {[%emt 0:11:02]} Bd7 {[%emt 0:09:48]} 17. g3 {[%emt 0:09:21]} Ne6 {[%emt 0:04:12]} 18. Bd5 {[%emt 0:03:23]} Nc7 {[%emt 0:01:16]} 19. Bxb7 {[%emt 0:01:19]} Rb8 {[%emt 0:00:26]} 20. Nc5 {[%emt 0:00:12]} Bb5 {[%emt 0:01:44]} 21. Rfd1 {[%emt 0:00:29]} Ne6 {[%emt 0:00:09]} 22. Nxe6 {[%emt 0:00:12]} fxe6 {[%emt 0:00:00]} 23. Be4 {[%emt 0:01:13]} Rbd8 {[%emt 0:01:46]} 24. Kf2 {[%emt 0:01:51]} Bh6 {[%emt 0:00:09]} 25. Ba3 {[%emt 0:01:09]} Kf7 {[%emt 0:00:22]} 26. h4 {[%emt 0:00:19]} Bd2 {[%emt 0:00:28]} 27. Bc5 {[%emt 0:01:20]} a5 {[%emt 0:01:26]} 28. Be3 {[%emt 0:01:23]} Bc3 {[%emt 0:00:11]} 29. Rac1 {[%emt 0:01:10]} Bxe5 {[%emt 0:00:07]} 30. Rxd8 {[%emt 0:00:25]} Rxd8 {[%emt 0:00:04]} 31. Rc5 {[%emt 0:00:16]} 1-0

[Event "LJ Slovak Open 2022"]
[Site "Liptovsky Jan"]
[Date "2022.06.25"]
[Round "4.10"]
[White "Borsos, Bogdan"]
[Black "Haasova, Timea"]
[Result "1/2-1/2"]
[ECO "D73"]
[WhiteElo "2200"]
[BlackElo "1811"]
[Annotator "ChessBase"]
[PlyCount "43"]
[EventDate "2022.06.23"]
[EventType "swiss"]
[EventCountry "SVK"]
[SourceTitle "playchess.com"]
[Source "ChessBase"]
[SourceQuality "1"]
[TimeControl "3600+30"]

1. Nf3 {[%emt 0:02:23]} Nf6 {[%emt 0:00:14]} 2. d4 {[%emt 0:00:17]} d5 {[%emt 0:00:14]} 3. g3 {[%emt 0:00:16]} g6 {[%emt 0:00:10]} 4. c4 {[%emt 0:00:19]} c6 {[%emt 0:00:35]} 5. Bg2 {[%emt 0:00:32]} Bg7 {[%emt 0:00:21]} 6. O-O {[%emt 0:00:56]} O-O {[%emt 0:00:26]} 7. Nfd2 {[%emt 0:01:02]} Nbd7 {[%emt 0:12:21]} 8. Nc3 {[%emt 0:00:34]} Nb6 {[%emt 0:00:39]} 9. cxd5 {[%emt 0:05:19]} cxd5 {[%emt 0:04:09]} 10. b3 {[%emt 0:02:11]} Bd7 {[%emt 0:04:56]} 11. Bb2 {[%emt 0:01:54]} Rc8 {[%emt 0:01:58]} 12. Re1 {[%emt 0:06:37]} e6 {[%emt 0:02:05]} 13. a4 {[%emt 0:06:55]} a5 {[%emt 0:01:32]} 14. e4 {[%emt 0:03:58]} dxe4 {[%emt 0:01:46]} 15. Ndxe4 {[%emt 0:00:34]} Nxe4 {[%emt 0:00:50]} 16. Nxe4 {[%emt 0:00:23]} Bc6 {[%emt 0:01:03]} 17. Ba3 {[%emt 0:02:35]} Bxd4 {[%emt 0:01:02]} 18. Bxf8 {[%emt 0:00:33]} Bxe4 {[%emt 0:03:30]} 19. Bxe4 {[%emt 0:00:48]} Bxa1 {[%emt 0:00:38]} 20. Qxd8 {[%emt 0:10:06]} Rxd8 {[%emt 0:00:56]} 21. Bc5 {[%emt 0:03:54]} h6 {[%emt 0:26:36]} 22. g4 {[%emt 0:13:44]} 1/2-1/2

[Event "LJ Slovak Open 2022"]
[Site "Liptovsky Jan"]
[Date "2022.06.25"]
[Round "4.11"]
[White "Bombek, Peter"]
[Black "Koska, Jiri"]
[Result "1-0"]
[ECO "A45"]
[WhiteElo "2111"]
[BlackElo "1759"]
[Annotator "RC"]
[PlyCount "63"]
[EventDate "2022.06.23"]
[EventType "swiss"]
[EventCountry "SVK"]
[SourceTitle "playchess.com"]
[Source "ChessBase"]
[SourceQuality "1"]
[TimeControl "3600+30"]

1. d4 {[%emt 0:00:21]} Nf6 {[%emt 0:00:05]} 2. Bg5 {[%emt 0:00:06]} e6 {[%emt 0:00:05]} 3. e4 {[%emt 0:00:12]} h6 {[%emt 0:00:05]} 4. Bxf6 {[%emt 0:00:04]} Qxf6 {[%emt 0:00:07]} 5. c3 {[%emt 0:00:07]} d6 {[%emt 0:00:39]} 6. Bd3 {[%emt 0:00:17]} g5 {[%emt 0:02:13]} 7. Ne2 {[%emt 0:02:13]} Nc6 {[%emt 0:04:46]} 8. Nd2 {[%emt 0:03:35]} Bd7 {[%emt 0:01:57]} 9. b4 {[%emt 0:03:18]} e5 {[%emt 0:04:11]} 10. d5 {[%emt 0:05:19]} Ne7 {[%emt 0:00:18]} 11. Ng3 {[%emt 0:00:46]} Ng6 {[%emt 0:04:17]} 12. Nh5 {[%emt 0:01:10]} Qe7 {[%emt 0:01:18]} 13. g3 {[%emt 0:03:57]} Rg8 {[%emt 0:07:45]} 14. Be2 {[%emt 0:04:20]} f5 {[%emt 0:04:27]} 15. exf5 {[%emt 0:00:59]} Bxf5 {[%emt 0:00:07]} 16. Bg4 {[%emt 0:00:21]} Qf7 {[%emt 0:03:16]} 17. Qf3 {[%emt 0:06:07]} Bxg4 {[%emt 0:01:23]} 18. Qxg4 {[%emt 0:00:05]} Be7 {[%emt 0:05:29]} 19. c4 {[%emt 0:03:24]} Nf8 {[%emt 0:04:40]} 20. O-O {[%emt 0:01:43]} Nd7 {[%emt 0:00:38]} 21. Rab1 {[%emt 0:03:38]} Nf6 {[%emt 0:02:30]} 22. Nxf6+ {[%emt 0:00:37]} Qxf6 {[%emt 0:01:21]} 23. Rb3 {[%emt 0:00:45]} Qg6 {[%emt 0:01:01]} 24. c5 {[%emt 0:07:19]} dxc5 {[%emt 0:09:54]} 25. bxc5 {[%emt 0:01:07]} Bxc5 {[%emt 0:01:42]} 26. Rxb7 {[%emt 0:02:30]} Bb6 {[%emt 0:00:11]} 27. Qa4+ {[%emt 0:04:49]} Ke7 {[%emt 0:01:17]} 28. Nc4 {[%emt 0:00:44]} Rab8 {[%emt 0:05:43]} 29. Nxe5 {[%emt 0:04:58]} Qf5 {[%emt 0:02:37]} 30. Rxb8 {[%emt 0:03:31]} Rxb8 {[%emt 0:00:17]} 31. Nc6+ {[%emt 0:00:25]} Kf7 {[%emt 0:01:00]} 32. Nxb8 {[%emt 0:00:15]} 1-0

[Event "LJ Slovak Open 2022"]
[Site "Liptovsky Jan"]
[Date "2022.06.25"]
[Round "4.12"]
[White "Vastik, Lukas"]
[Black "Ihnat, Marek"]
[Result "0-1"]
[ECO "B14"]
[WhiteElo "1738"]
[BlackElo "2045"]
[Annotator "NA RC"]
[PlyCount "60"]
[EventDate "2022.06.23"]
[EventType "swiss"]
[EventCountry "SVK"]
[SourceTitle "playchess.com"]
[Source "ChessBase"]
[SourceQuality "1"]
[TimeControl "3600+30"]

1. e4 {[%emt 0:00:07]} c6 {[%emt 0:00:18]} 2. d4 {[%emt 0:00:21]} d5 {[%emt 0:00:04]} 3. exd5 {[%emt 0:00:11]} cxd5 {[%emt 0:00:06]} 4. c4 {[%emt 0:00:22]} Nf6 {[%emt 0:00:10]} 5. Nc3 {[%emt 0:00:14]} g6 {[%emt 0:00:08]} 6. Nf3 {[%emt 0:00:22]} Bg7 {[%emt 0:00:07]} 7. Qb3 {[%emt 0:01:41]} O-O {[%emt 0:00:22]} 8. cxd5 {[%emt 0:00:50]} Nbd7 {[%emt 0:00:02]} 9. Bd2 {[%emt 0:07:30]} Nb6 {[%emt 0:00:58]} 10. h3 {[%emt 0:01:11]} Nbxd5 {[%emt 0:03:03]} 11. Nxd5 {[%emt 0:03:20]} Nxd5 {[%emt 0:01:23]} 12. Bd3 {[%emt 0:02:47]} e6 {[%emt 0:08:10]} 13. O-O {[%emt 0:02:34]} Qb6 {[%emt 0:00:50]} 14. Qa4 {[%emt 0:04:06]} Qd6 {[%emt 0:06:55]} 15. Rfd1 {[%emt 0:13:47]} b6 {[%emt 0:02:57]} 16. Be4 {[%emt 0:02:13]} Bd7 {[%emt 0:05:58]} 17. Qb3 {[%emt 0:00:29]} Bc6 {[%emt 0:02:33]} 18. Rac1 {[%emt 0:01:09]} Rac8 {[%emt 0:00:21]} 19. a3 {[%emt 0:07:37]} Rfd8 {[%emt 0:01:04]} 20. Bd3 {[%emt 0:07:54]} Qd7 {[%emt 0:02:37]} 21. Bg5 {[%emt 0:02:57]} Ba4 {[%emt 0:02:42]} 22. Qa2 {[%emt 0:00:40]} Bxd1 {[%emt 0:00:11]} 23. Rxd1 {[%emt 0:00:10]} Bf6 {[%emt 0:02:23]} 24. Ba6 {[%emt 0:01:29]} Qa4 {[%emt 0:04:23]} 25. Be2 {[%emt 0:00:05]} Bxg5 {[%emt 0:00:56]} 26. Nxg5 {[%emt 0:00:05]} Rc2 {[%emt 0:01:18]} 27. Bf3 {[%emt 0:00:29]} Nc3 $19 {[%emt 0:04:50]} 28. Qa1 {[%emt 0:00:32]} Nxd1 {[%emt 0:00:25]} 29. Bxd1 {[%emt 0:00:02]} Rdc8 {[%emt 0:02:38]} 30. Bxc2 {[%emt 0:00:06]} Qxc2 {[%emt 0:00:18]} 0-1